Cogmind - Beta 16.1 @@@ ROGUE MODE // 2026.02.22 @ 08:51:01 Player: Ceorik Result: Self-destructed Performance ------------- Evolutions (3) 1500 Regions Visited (11) 2200 Robots Destroyed (121) 605 Value Destroyed (4336) 4336 Prototype IDs (16) 320 Alien Tech Used (0) 0 Bonus (1889) 1889 TOTAL SCORE: 10850 Bonus ------- High Alert Combat Kills 189 Entered Garrisons 400 Used RIF Installer 1000 Met Data Miner 300 Cogmind --------- Core Integrity 108/700 Matter 6/300 Energy 100/100 System Corruption 6% Temperature Cool (0) Movement Core (50) Location -6/Proximity Caves Parts ------- > --- POWER (1) -------- (None) > --- PROPULSION (4) --- (None) > --- UTILITY (6) ------ Targeting Computer > --- WEAPON (2) ------- (None) > --- INVENTORY (5) ---- Improved Heat Sink Large Matter Pod (150) Hacking Suite Gauss Rifle Gauss Rifle Peak State ------------ > --- POWER ------------ Micro Nuclear Core > --- PROPULSION ------- Armored Treads Medium Treads VSS Leg Makeshift Leg > --- UTILITY ---------- Cryofiber Web Improved Cooling System High-capacity Storage Unit Targeting Computer Powered Armor Relay Coupler [Hunter] > --- WEAPON ----------- Gauss Rifle Remote Datajack > --- INVENTORY -------- Light Nuclear Core Improved Heat Sink Improved Heat Sink Large Matter Pod Weapon Cycler Improved Power Shielding Improved Weapon Shielding Hardened Medium Armor Plating Hardened Medium Armor Plating Insulated Plating Hacking Suite Hacking Suite Relay Coupler [Duelist] Relay Coupler [Hunter] Precision Beam Rifle Gauss Rifle Gauss Rifle Gauss Rifle Heavy Missile Launcher Great Axe [Rating: 50] Favorites ----------- Power Improved Ion Engine Engine Improved Ion Engine Power Core Light Nuclear Core Propulsion Light Treads Treads Light Treads Leg Aluminum Leg Utility High-capacity Storage Unit Device Cryofiber Web Storage High-capacity Storage Unit Processor Targeting Computer Hackware Relay Coupler [Grunt] Protection Hardened Medium Armor Plating Weapon Minigun Energy Gun Heavy Laser Energy Cannon Ion Cannon Ballistic Gun Minigun Launcher Heavy Missile Launcher Special Weapon Remote Datajack Slashing Weapon Great Axe Build | -11 -10 -9 -8 -8 -8 -8 -7 -7 -7 -7 -6 ------- Run | Yrd Mat Mat Mat Gar Mat Gar Fac Low Low Dat Pro Slots Evolved 6 | . . 2 2 . . . 2 . . . . Power . | . . . . . . . . . . . . Propulsion 2 | . . 2 . . . . . . . . . Utility 4 | . . . 2 . . . 2 . . . . Weapon . | . . . . . . . . . . . . Parts Attached 82 | 6 4 19 13 1 1 14 12 4 5 3 . Power 8 | 1 . 2 1 . 1 1 1 1 . . . Engine 5 | 1 . 2 1 . 1 . . . . . . Core 3 | . . . . . . 1 1 1 . . . Reactor . | . . . . . . . . . . . . Propulsion 23 | 2 1 5 4 . . 7 2 1 1 . . Treads 18 | 2 1 5 4 . . 3 2 . 1 . . Leg 5 | . . . . . . 4 . 1 . . . Wheel . | . . . . . . . . . . . . Hover . | . . . . . . . . . . . . Flight . | . . . . . . . . . . . . Utility 25 | 1 2 2 5 1 . 2 6 . 3 3 . Device 8 | . 2 . 1 . . 1 2 . 1 1 . Storage 3 | 1 . 1 1 . . . . . . . . Processor 1 | . . . 1 . . . . . . . . Hackware 3 | . . . . . . . 2 . 1 . . Protection 10 | . . 1 2 1 . 1 2 . 1 2 . Artifact . | . . . . . . . . . . . . Weapon 26 | 2 1 10 3 . . 4 3 2 1 . . Energy Gun 5 | . . 3 . . . 1 1 . . . . Energy Cannon 2 | . . 1 . . . 1 . . . . . Ballistic Gun 11 | 2 1 5 . . . 1 . 1 1 . . Ballistic Cannon . | . . . . . . . . . . . . Launcher 5 | . . 1 2 . . 1 . 1 . . . Special Weapon 1 | . . . . . . . 1 . . . . Impact Weapon . | . . . . . . . . . . . . Slashing Weapon 2 | . . . 1 . . . 1 . . . . Piercing Weapon . | . . . . . . . . . . . . Special Melee Weapon . | . . . . . . . . . . . . Unidentified Prototypes 5 | . . 2 1 . . . 1 . . 1 . Parts Lost 37 | . 1 . 1 1 . 11 4 . 3 16 . Power 4 | . . . . . . 1 1 . 1 1 . Propulsion 13 | . . . . . . 6 2 . . 5 . Utility 13 | . . . 1 1 . 1 1 . 2 7 . Weapon 7 | . 1 . . . . 3 . . . 3 . Highest Loss Streak 9 | . 1 . 1 1 . 4 2 . 1 9 . To Critical Strikes 2 | . . . . . . 2 . . . . . Average Backups 17 | . 5 17 18 19 18 17 19 19 19 14 . Power 1 | . . 1 2 2 1 1 . 1 . . . Propulsion . | . . 1 1 1 . . . . . . . Utility 9 | . 2 6 7 9 9 10 12 13 11 7 . Weapon 4 | . 1 7 7 7 7 4 3 4 4 4 . Tool/Special . | . . . . . . . . . . . . Unused Backups 27 | . . 5 5 . 2 3 3 . 2 4 3 Power 1 | . . 1 . . . . . . . . . Propulsion . | . . . . . . . . . . . . Utility 13 | . . 1 1 . . 2 3 . 2 3 1 Weapon 13 | . . 3 4 . 2 1 . . . 1 2 Tool/Special . | . . . . . . . . . . . . Average Slot Usage (%) 96 | . 89 97 99 99 100 98 98 93 95 75 . Engine 4 | . 14 11 9 9 9 5 . . . . . Core 3 | . . . . . . 3 7 7 6 3 . Treads 22 | . 28 42 36 36 36 21 2 15 21 11 . Leg 8 | . . . . . . 13 25 8 8 7 . Device 10 | . 4 1 9 9 9 9 8 15 18 17 . Storage 8 | . 14 11 9 9 9 9 7 7 7 6 . Processor 6 | . . . 8 9 9 9 7 7 7 7 . Hackware 1 | . . . . . . . 8 . . . . Protection 9 | . . 9 9 8 9 8 12 14 7 7 . Energy Gun 3 | . . 6 . . . 2 8 6 . . . Ballistic Gun 10 | . 28 13 17 14 18 10 . . 9 9 . Slashing Weapon 2 | . . . . 3 . 3 4 2 4 . . Peak Build Rating 50 | 6 7 20 26 28 29 29 44 48 50 49 . Average Rating 30 | 4 6 15 23 26 28 26 38 44 47 39 . On Entrance 23 | . 6 7 19 26 28 28 29 43 48 49 2 Avg Prop Armor Cover (%) 4 | . . . . . . 8 2 2 4 3 . Naked Turns . | . . . . . . . . . . . . Heaviest Build 78 | 13 14 56 57 74 74 74 74 78 75 65 . Greatest Support 86 | 40 40 86 86 85 85 85 48 48 76 76 . Greatest Overweight (x) 17 | 3 . . . . . 3 2 1 1 17 . Average Overweight (x) . | . . . . . . . 1 1 . 1 . Largest Inventory Capacity 20 | 8 8 20 20 20 20 20 20 20 20 20 . Average Capacity 18 | 7 8 19 20 20 20 20 20 20 20 18 . Most Carried 20 | 3 8 20 20 20 20 20 20 20 20 19 . Average Carried 17 | . 5 17 18 19 18 17 19 19 19 16 . Final Capacity 20 | 8 8 20 20 20 20 20 20 20 20 5 5 Final Carried 20 | 1 8 20 20 19 18 20 19 20 19 5 5 Class Distribution -------------------- 67% | Mutant 20% | Scavenger-Mutant 12% | Bothacker-Mutant Dominant Class ---------------- Mutant | -10/Materials Scavenger-Mutant | -9/Materials Mutant | -8/Materials Mutant | -8/Garrison Mutant | -8/Materials Scavenger-Mutant | -8/Garrison Bothacker-Mutant | -7/Factory Mutant | -7/Lower Caves Mutant | -7/Lower Caves Mutant | -7/Data Miner Mutant | -6/Proximity Caves Resources | -11 -10 -9 -8 -8 -8 -8 -7 -7 -7 -7 -6 ----------- Run | Yrd Mat Mat Mat Gar Mat Gar Fac Low Low Dat Pro Matter Collected 3263 | 224 165 636 301 141 226 794 238 171 367 . . Remotely . | . . . . . . . . . . . . Salvage Created 4566 | . 186 1230 345 141 145 1291 578 166 466 18 . Parts 237 | . 18 75 33 4 3 67 23 2 12 . . Haulers Intercepted 7 | . 1 3 1 . . . 2 . . . . Recyclers Shooed 3 | . 2 1 . . . . . . . . . Parts Field Recycled . | . . . . . . . . . . . . Retrieved Matter . | . . . . . . . . . . . . Parts Self-Destructed 12 | . . . . . . . . 1 11 . . Prevented . | . . . . . . . . . . . . Parts Restored . | . . . . . . . . . . . . Kills | -11 -10 -9 -8 -8 -8 -8 -7 -7 -7 -7 -6 ------- Run | Yrd Mat Mat Mat Gar Mat Gar Fac Low Low Dat Pro Combat Hostiles Destroyed 101 | . 9 22 13 3 4 28 11 4 5 2 . Melee 1 | . . . . . . . 1 . . . . Guns 73 | . 9 13 7 3 4 23 8 1 5 . . Cannons 6 | . . 4 . . . 2 . . . . . AOE 21 | . . 5 6 . . 3 2 3 . 2 . Classes Destroyed 15 | . 3 6 1 . . 5 . . . . . Worker 3 | . . 2 . . . . 1 . . . . Builder 1 | . . 1 . . . . . . . . . Tunneler 2 | . . 2 . . . . . . . . . Hauler 7 | . 1 3 1 . . . 2 . . . . Recycler 1 | . . 1 . . . . . . . . . Operator 1 | . . . 1 . . . . . . . . Watcher 5 | . . 3 . . . 2 . . . . . Swarmer 30 | . 8 4 9 . 2 4 3 . . . . Grunt 41 | . 1 12 2 3 2 9 6 4 2 . . Brawler 3 | . . . . . . 2 1 . . . . Duelist 1 | . . . . . . 1 . . . . . Sentry 12 | . . 6 2 . . 3 . . 1 . . Specialist 2 | . . . . . . 2 . . . . . Hunter 1 | . . . . . . 1 . . . . . Programmer 9 | . . . . . . 6 1 . 2 . . Enhanced Grunt 2 | . . . . . . . . . . 2 . Best Kill Streak 6 | . 5 4 4 3 4 6 3 4 4 2 . Combat Bots Only 6 | . 5 4 4 3 4 6 3 4 4 2 . Max Kills in Single Turn 3 | . 2 2 2 1 1 3 1 2 1 1 . Gunslinging 1 | . 1 . . . . . . . . . . Exploded 3 | . . 2 2 . . 3 1 2 . 1 . Melee 1 | . . . . . . . 1 . . . . Uniques/NPCs Destroyed . | . . . . . . . . . . . . Combat | -11 -10 -9 -8 -8 -8 -8 -7 -7 -7 -7 -6 -------- Run | Yrd Mat Mat Mat Gar Mat Gar Fac Low Low Dat Pro Hostile Shots Fired 754 | . 77 65 51 33 19 208 87 56 75 83 . Missed 228 | . 16 22 17 8 7 61 29 26 15 27 . Hits 526 | . 61 43 34 25 12 147 58 30 60 56 . Melee 6 | . . . . . . 3 3 . . . . Projectile 520 | . 61 43 34 25 12 144 55 30 60 56 . Critical Strikes 22 | . . 2 1 2 2 7 5 . 3 . . Actively Blocked 2 | . . . . 2 . . . . . . . Part Disruptions 1 | . . . . . . . . . . 1 . Damage Taken 8579 | . 509 546 424 354 131 1826 922 354 934 2579 . Core 974 | . 101 64 82 . . 135 53 26 143 370 . Absorbed by Shields 116 | . . . . . . 116 . . . . . Redirected to Shielding 162 | . . . . 50 . . . . . 112 . Ignored by Resistances 104 | . . . . 5 14 85 . . . . . Regen/Repaired (Parts) 481 | . . 197 . . . . 284 . . . . Core Remaining (%) 75 | 100 59 84 . . . 60 . . . . . Volleys Fired 308 | 3 33 56 34 8 11 81 38 7 21 16 . Largest 2 | 2 2 2 2 2 2 2 2 2 2 2 . Hottest 130 | 40 40 98 55 50 50 129 130 108 56 67 . Shots Fired 598 | 6 66 107 68 17 22 160 68 12 40 32 . Gun 533 | 6 66 93 64 17 22 146 55 7 39 18 . Cannon 30 | . . 12 . . . 13 5 . . . . Launcher 30 | . . 2 4 . . 1 4 5 . 14 . Special 5 | . . . . . . . 4 . 1 . . Kinetic 412 | 6 66 61 64 17 22 119 . . 39 18 . Thermal 119 | . . 12 . . . 40 60 7 . . . Explosive 26 | . . 2 4 . . 1 . 5 . 14 . Electromagnetic 36 | . . 32 . . . . 4 . . . . Robot Hit Streak 39 | 2 11 13 17 16 17 39 28 8 13 7 . Robot Miss Streak 3 | 2 3 3 2 . 1 2 1 2 2 1 . Penetration Max . | . . . . . . . . . . . . Secondary Targets 8 | . 1 . . 1 . 5 1 . . . . Max Gunslinging Chain 1 | . 1 . . 1 . 1 1 . . . . Shots Hit Robots 456 | 3 43 69 51 16 18 124 64 10 32 26 . Core Hits 216 | 1 17 46 21 8 8 57 24 9 13 12 . Critical Kills 2 | . . 1 . . . . . . 1 . . Critical Parts Destroyed 1 | . . . . . . . . . . 1 . Critical Strikes 5 | . . 1 . . . . 2 . 1 1 . Burn 2 | . . . . . . . 2 . . . . Destroy 3 | . . 1 . . . . . . 1 1 . Melee Attacks 74 | . . . . 16 . 36 9 9 4 . . Impact . | . . . . . . . . . . . . Slashing 74 | . . . . 16 . 36 9 9 4 . . Piercing . | . . . . . . . . . . . . Sneak Attacks 3 | . . . . . . . 3 . . . . Combat Hostiles 1 | . . . . . . . 1 . . . . Follow-up Attacks . | . . . . . . . . . . . . Damage Inflicted 10929 | 37 418 1492 1191 256 311 2533 1716 767 914 1294 . Guns 6764 | 37 410 958 862 256 311 2100 901 99 597 233 . Cannons 433 | . . 144 . . . 196 93 . . . . Explosions 2930 | . . 326 329 . . 237 383 594 . 1061 . Melee 730 | . . . . . . . 339 74 317 . . Ramming 72 | . 8 64 . . . . . . . . . Kinetic 4905 | 37 410 530 862 256 311 1669 . . 597 233 . Thermal 2150 | . . 293 . . . 627 1131 99 . . . Explosive 2398 | . . 177 329 . . 237 . 594 . 1061 . Electromagnetic 674 | . . 428 . . . . 246 . . . . Impact . | . . . . . . . . . . . . Slashing 730 | . . . . . . . 339 74 317 . . Piercing . | . . . . . . . . . . . . Highest Corruption 6 | . . 3 1 1 1 6 5 5 6 6 . Average Corruption 3 | . . 3 1 1 1 2 5 5 5 6 . Corruption Purged . | . . . . . . . . . . . . Corruption Blocked . | . . . . . . . . . . . . Effects 145 | . . 22 . 1 1 28 4 31 47 11 . Message Errors 43 | . . 7 . . . 8 2 9 15 2 . Matter Fused 31 | . . 4 . . 1 4 . 10 9 3 . Heat Flow Errors 11 | . . 1 . . . 1 1 3 5 . . Energy Discharges 20 | . . 4 . . . 4 1 2 6 3 . Parts Rejected 1 | . . . . . . 1 . . . . . Data Loss (minor) 17 | . . 3 . . . 4 . 4 4 2 . Data Loss (major) 3 | . . . . . . . . 2 1 . . Misfires 9 | . . 2 . 1 . 2 . 1 2 1 . Alerts 4 | . . . . . . 2 . . 2 . . Weapon Failures 6 | . . 1 . . . 2 . . 3 . . Overload Shots . | . . . . . . . . . . . . Overflow Damage 383 | . . 49 20 . . 12 127 21 126 28 . Projectiles 6 | . . . . . . . 6 . . . . Explosions 158 | . . 49 20 . . 12 28 21 . 28 . Melee 219 | . . . . . . . 93 . 126 . . Knockbacks . | . . . . . . . . . . . . Impact . | . . . . . . . . . . . . Kinetic . | . . . . . . . . . . . . Secondary . | . . . . . . . . . . . . Self-Inflicted Damage 132 | . . 46 . . . 25 12 2 . 47 . Shots 5 | . . 1 . . . 1 1 1 . 1 . Rammed 5 | . 2 3 . . . . . . . . . Targets Rammed 8 | . 2 6 . . . . . . . . . Kicked . | . . . . . . . . . . . . Crushed 3 | . . 3 . . . . . . . . . Highest Temperature 332 | . 6 229 . . 9 332 291 57 152 8 . Average Temperature 70 | . 6 46 . . 7 108 116 25 72 3 . Received Heat Transfer 1659 | . 12 207 126 99 99 495 390 69 162 . . Effects 5 | . . . . . . 2 3 . . . . Energy Bleed 1 | . . . . . . . 1 . . . . Interference 4 | . . . . . . 2 2 . . . . Siege Activations . | . . . . . . . . . . . . Martial Activations . | . . . . . . . . . . . . Shielding Activations . | . . . . . . . . . . . . Robots Disrupted . | . . . . . . . . . . . . Combat Hostiles . | . . . . . . . . . . . . Robots Corrupted . | . . . . . . . . . . . . Combat Hostiles . | . . . . . . . . . . . . Parts Fried 2 | . . . . . . . 2 . . . . Impact Corruptions . | . . . . . . . . . . . . Robots Melted . | . . . . . . . . . . . . Combat Hostiles . | . . . . . . . . . . . . Parts Melted 8 | . . . . . . 3 5 . . . . Heat Transferred 3976 | . . 359 . . . 1036 2396 185 . . . Parts Sabotaged . | . . . . . . . . . . . . Parts Stolen . | . . . . . . . . . . . . Parts Stripped . | . . . . . . . . . . . . Power Chain Reactions 3 | . . 1 . . . . 2 . . . . Alert | -11 -10 -9 -8 -8 -8 -8 -7 -7 -7 -7 -6 ------- Run | Yrd Mat Mat Mat Gar Mat Gar Fac Low Low Dat Pro Maximum Alert Level 3 | . . 1 . . . 3 2 . . . . Low Security (%) 67 | 100 100 96 100 100 100 11 54 . . . . Level 1 19 | . . 3 . . . 44 37 . . . . Level 2 10 | . . . . . . 33 8 . . . . Level 3 2 | . . . . . . 11 . . . . . Level 4 . | . . . . . . . . . . . . Level 5 . | . . . . . . . . . . . . High Security . | . . . . . . . . . . . . Max Security . | . . . . . . . . . . . . Peak Influence 858 | . 120 234 193 143 95 858 450 . . . . Initial 450 | . . . 94 67 64 48 450 . . . . Average 200 | . 33 84 131 103 37 453 200 . . . . Influence Increases 2952 | . 221 670 376 76 105 920 334 110 140 . . Destroy 0b10 Robot/C 1980 | . 180 440 260 60 80 560 220 80 100 . . Destroy 0b10 Robot/NC 115 | . 5 60 10 . . 10 15 5 10 . . Destroy Leader 290 | . 32 122 42 . 10 30 44 10 . . . Allied During Kill 2 | . . . . . . . 2 . . . . Successful Hack 26 | . 4 . 19 . . . 3 . . . . Disable Machine 45 | . . 15 . . . . 30 . . . . Anti-Garrison Action 200 | . . . . . . 200 . . . . . Destroy Structure 174 | . . 33 30 16 . 75 20 . . . . Lose Combat Pursuer 120 | . . . 15 . 15 45 . 15 30 . . Influence Decreases 2952 | . 221 444 498 47 163 137 978 324 113 27 . Entered New Map 780 | . . . 132 37 69 27 408 80 . 27 . Time Decay 1968 | . 211 444 356 . 94 . 530 230 103 . . Lost Part 190 | . 10 . 10 10 . 110 40 . 10 . . Lost Ally 14 | . . . . . . . . 14 . . . Squads Dispatched 9 | . . 5 . . 1 . 3 . . . . Investigation 2 | . . 2 . . . . . . . . . Extermination 1 | . . . . . . . 1 . . . . Reinforcement 5 | . . 3 . . . . 2 . . . . Assault . | . . . . . . . . . . . . Garrison 1 | . . . . . 1 . . . . . . Intercept . | . . . . . . . . . . . . Searches Triggered . | . . . . . . . . . . . . Construction Impeded . | . . . . . . . . . . . . Haulers Reinforced . | . . . . . . . . . . . . Active Scanning Responses . | . . . . . . . . . . . . Cargo Convoy Interrupts . | . . . . . . . . . . . . Stealth | -11 -10 -9 -8 -8 -8 -8 -7 -7 -7 -7 -6 --------- Run | Yrd Mat Mat Mat Gar Mat Gar Fac Low Low Dat Pro Distress Signals 10 | . 3 3 1 . 1 1 1 . . . . Communications Jammed . | . . . . . . . . . . . . Distress Signals . | . . . . . . . . . . . . Times Spotted 149 | . 19 32 22 5 8 30 14 5 9 5 . Peak Tracking Total 7 | . 7 7 6 3 5 5 4 4 5 2 . Tactical Retreats 7 | . . 1 1 . 1 2 . 1 1 . . ECM-based Alert Blocks 1 | . . 1 . . . . . . . . . Traps | -11 -10 -9 -8 -8 -8 -8 -7 -7 -7 -7 -6 ------- Run | Yrd Mat Mat Mat Gar Mat Gar Fac Low Low Dat Pro Traps Triggered 9 | . 2 2 2 . . 3 . . . . . Indirectly . | . . . . . . . . . . . . Trap Hack Attempts . | . . . . . . . . . . . . Triggered . | . . . . . . . . . . . . Disarmed . | . . . . . . . . . . . . Reprogrammed . | . . . . . . . . . . . . Reused . | . . . . . . . . . . . . Traps Extracted . | . . . . . . . . . . . . Installed . | . . . . . . . . . . . . Triggered . | . . . . . . . . . . . . Machines | -11 -10 -9 -8 -8 -8 -8 -7 -7 -7 -7 -6 ---------- Run | Yrd Mat Mat Mat Gar Mat Gar Fac Low Low Dat Pro Machines Disabled 7 | . . 1 . . . 2 2 . . 2 . Max in Single Turn 2 | . . 1 . . . 1 2 . . 2 . Garrison Relay 3 | . . . . . . 3 . . . . . Machines Repaired . | . . . . . . . . . . . . Machines Dismantled . | . . . . . . . . . . . . Machines Sabotaged . | . . . . . . . . . . . . Overloaded Fab Kills . | . . . . . . . . . . . . Hacking | -11 -10 -9 -8 -8 -8 -8 -7 -7 -7 -7 -6 --------- Run | Yrd Mat Mat Mat Gar Mat Gar Fac Low Low Dat Pro Machines Accessed 27 | . 2 6 9 . 1 . 1 1 3 4 . Terminals 12 | . 2 3 7 . . . . . . . . Fabricators . | . . . . . . . . . . . . Repair Stations 2 | . . 1 . . . . 1 . . . . Recycling Units 1 | . . 1 . . . . . . . . . Scanalyzers 2 | . . 1 1 . . . . . . . . Garrison Access 2 | . . . 1 . 1 . . . . . . Total Hacks 92 | . 5 17 26 . 2 . 6 1 6 29 . Successful 67 | . 2 7 16 . 2 . 4 1 6 29 . Failed 24 | . 3 9 10 . . . 2 . . . . Catastrophic 3 | . . 1 2 . . . . . . . . Database Lockouts 1 | . . 1 . . . . . . . . . Manual 34 | . 5 9 20 . . . . . . . . Terminals 35 | . 5 9 21 . . . . . . . . Fabricators . | . . . . . . . . . . . . Repair Stations 10 | . . 4 . . . . 6 . . . . Recycling Units 1 | . . 1 . . . . . . . . . Scanalyzers 7 | . . 3 4 . . . . . . . . Garrison Access 3 | . . . 1 . 2 . . . . . . Terminal Hacks 40 | . . . 4 . . . . 1 6 29 . Record 15 | . . . . . . . . . 4 11 . Part Schematic 11 | . . . . . . . . . . 11 . Robot Schematic 4 | . . . . . . . . . . 4 . Prototype ID Bank 4 | . . . 1 . . . . . . 3 . Open Door 3 | . . . . . . . . 1 2 . . Branch Access Points 1 | . . . 1 . . . . . . . . Alert Level 1 | . . . 1 . . . . . . . . Hauler Manifests 1 | . . . 1 . . . . . . . . Fabricator Hacks . | . . . . . . . . . . . . Repair Station Hacks 8 | . . 4 . . . . 4 . . . . Scan Component 4 | . . 2 . . . . 2 . . . . Repair 4 | . . 2 . . . . 2 . . . . Recycling Unit Hacks 1 | . . 1 . . . . . . . . . Report Inventory 1 | . . 1 . . . . . . . . . Scanalyzer 6 | . . 2 4 . . . . . . . . Insert Component 1 | . . . 1 . . . . . . . . Analyze 1 | . . . 1 . . . . . . . . Retrieve Study 4 | . . 2 2 . . . . . . . . Garrison Access Hacks 3 | . . . 1 . 2 . . . . . . Unlock Access 2 | . . . 1 . 1 . . . . . . Coupler Status 1 | . . . . . 1 . . . . . . Unauthorized Hacks 9 | . 2 . 7 . . . . . . . . Terminals 9 | . 2 . 7 . . . . . . . . Assimilate 1 | . . . 1 . . . . . . . . Botnet 8 | . 2 . 6 . . . . . . . . Fabricators . | . . . . . . . . . . . . Repair Stations . | . . . . . . . . . . . . Recycling Units . | . . . . . . . . . . . . Scanalyzers . | . . . . . . . . . . . . Garrison Access . | . . . . . . . . . . . . Data Cores Recovered 1 | . . . 1 . . . . . . . . Used . | . . . . . . . . . . . . Hacking Detections 14 | . 2 4 7 . . . 1 . . . . Full Trace Events 1 | . . 1 . . . . . . . . . Feedback Events . | . . . . . . . . . . . . Feedback Blocked . | . . . . . . . . . . . . Robot Schematics Acquired 4 | . . . . . . . . . . 4 . Robots Built . | . . . . . . . . . . . . Authchips . | . . . . . . . . . . . . Time . | . . . . . . . . . . . . Total Robot Build Rating . | . . . . . . . . . . . . Part Schematics Acquired 12 | . . . 1 . . . . . . 11 . Parts Built . | . . . . . . . . . . . . Authchips . | . . . . . . . . . . . . Time . | . . . . . . . . . . . . Total Part Build Rating . | . . . . . . . . . . . . Part Studies Acquired 4 | . . 2 2 . . . . . . . . Parts Repaired 4 | . . 2 . . . . 2 . . . . Time 134 | . . 52 . . . . 82 . . . . Parts Recycled . | . . . . . . . . . . . . Recycled Matter . | . . . . . . . . . . . . Retrieved Matter . | . . . . . . . . . . . . Retrieved Components . | . . . . . . . . . . . . Parts Scanalyzed 1 | . . . 1 . . . . . . . . Part Schematics Acquired 1 | . . . 1 . . . . . . . . Parts Damaged . | . . . . . . . . . . . . Bothacking | -11 -10 -9 -8 -8 -8 -8 -7 -7 -7 -7 -6 ------------ Run | Yrd Mat Mat Mat Gar Mat Gar Fac Low Low Dat Pro Used RIF Installer 2 | . . . . 1 . 1 . . . . . Structural Interface 1 | . . . . . . 1 . . . . . Robots Hacked 3 | . . . . . . . 2 . 1 . . Non-combat 1 | . . . . . . . 1 . . . . Combat 2 | . . . . . . . 1 . 1 . . Robot Hacks Applied 4 | . . . . . . . 3 . 1 . . find_fabricator 1 | . . . . . . . 1 . . . . find_dsf 1 | . . . . . . . 1 . . . . formatsys_high 2 | . . . . . . . 1 . 1 . . Relay Couplers Released 11 | . . . . . . 11 . . . . . Machine Destruction 11 | . . . . . . 11 . . . . . Attached 3 | . . . . . . . 2 . 1 . . Fabnet Peak Effective % . | . . . . . . . . . . . . Robots Rewired . | . . . . . . . . . . . . Allies Hacked . | . . . . . . . . . . . . Hacks Repelled . | . . . . . . . . . . . . Allies | -11 -10 -9 -8 -8 -8 -8 -7 -7 -7 -7 -6 -------- Run | Yrd Mat Mat Mat Gar Mat Gar Fac Low Low Dat Pro Total Allies 2 | . . . . . . . 1 . 1 . . Largest Group 1 | . . . . . . . 1 1 1 . . Highest-Rated Group 32 | . . . . . . . 32 32 21 . . Highest-Rated Ally 32 | . . . . . . . 32 32 21 . . Total Orders 3 | . . . . . . . 3 . . . . STAY 2 | . . . . . . . 2 . . . . FOLLOW 1 | . . . . . . . 1 . . . . Ally Attacks 2 | . . . . . . . . 2 . . . Total Damage 93 | . . . . . . . . 93 . . . Kills . | . . . . . . . . . . . . Allies Corrupted . | . . . . . . . . . . . . Allies Melted . | . . . . . . . . . . . . Intel | -11 -10 -9 -8 -8 -8 -8 -7 -7 -7 -7 -6 ------- Run | Yrd Mat Mat Mat Gar Mat Gar Fac Low Low Dat Pro Active Infowar (turns) 370 | . 231 139 . . . . . . . . . Terrain 227 | . 227 . . . . . . . . . . ECM 143 | . 4 139 . . . . . . . . . Robot Analysis Total . | . . . . . . . . . . . . Derelict Logs Recovered 1 | . . . . . . . . . 1 . . Drone Launches . | . . . . . . . . . . . . Drone Recoveries . | . . . . . . . . . . . . Exploration | -11 -10 -9 -8 -8 -8 -8 -7 -7 -7 -7 -6 ------------- Run | Yrd Mat Mat Mat Gar Mat Gar Fac Low Low Dat Pro Turns Passed 10180 | 116 790 1313 807 432 201 1727 1486 1360 1625 323 . Spaces Moved 4288 | 59 417 540 406 200 105 619 469 471 882 120 . Core 32 | 10 . . . . . . . . . 22 . Treads 3745 | 49 417 540 406 200 105 514 78 471 882 83 . Legs 511 | . . . . . . 105 391 . . 15 . Wheels . | . . . . . . . . . . . . Hover . | . . . . . . . . . . . . Flight . | . . . . . . . . . . . . Fastest Speed 50 | 50 160 160 156 156 156 156 187 245 163 50 . Average Speed 183 | 161 160 160 159 156 156 196 198 245 172 227 . Slowest Speed 900 | 200 160 160 160 156 156 400 262 245 245 900 . Overloaded Moves . | . . . . . . . . . . . . Propulsion Burnouts . | . . . . . . . . . . . . Robots Hopped . | . . . . . . . . . . . . Potential Cave-ins 1 | . . . . . . . . 1 . . . Cave-ins Triggered . | . . . . . . . . . . . . Exploration Rate (%) 40 | 4 54 47 58 18 15 60 10 59 89 72 4 Regions Visited 11 Branch Regions 4 Pre-discovered Areas 2 | . . . . . . . . . 1 1 . Known Exits Taken 2 | . . . 1 . 1 . . . . . . Unknown Exits Taken 7 | 1 1 1 . . . . 1 1 1 1 . Scrap Searched 6 | . . . . . . . . 3 3 . . Spaces Dug 23 | . . . 7 1 . 4 3 8 . . . Terrain Destroyed 231 | . . 35 32 1 . 13 18 77 1 54 . Melee 16 | . . . . 1 . 4 3 8 . . . Projectile 1 | . . . . . . . . . 1 . . AOE 214 | . . 35 32 . . 9 15 69 . 54 . Terrain Rammed . | . . . . . . . . . . . . Walls Destroyed . | . . . . . . . . . . . . Machines Disabled . | . . . . . . . . . . . . Actions | -11 -10 -9 -8 -8 -8 -8 -7 -7 -7 -7 -6 --------- Run | Yrd Mat Mat Mat Gar Mat Gar Fac Low Low Dat Pro Total 5969 | 74 483 889 508 282 125 930 943 648 944 143 . Wait 968 | . 15 194 18 56 . 135 386 142 21 1 . Move 4279 | 58 416 539 406 199 105 618 468 470 881 119 . Hop . | . . . . . . . . . . . . Pick Up 126 | 7 12 44 16 . 3 19 15 6 4 . . Fast Attach . | . . . . . . . . . . . . Attach 56 | 6 5 8 3 1 . 14 8 2 4 5 . Detach . | . . . . . . . . . . . . Swap 80 | . . 16 18 2 2 18 10 8 5 1 . Drop 66 | . . 26 13 . 4 5 9 4 4 1 . Fire 308 | 3 33 56 34 8 11 81 38 7 21 16 . Melee 74 | . . . . 16 . 36 9 9 4 . . Ram . | . . . . . . . . . . . . Kick . | . . . . . . . . . . . . Crush 8 | . 2 6 . . . . . . . . . Escape Stasis 4 | . . . . . . 4 . . . . . Rewire . | . . . . . . . . . . . . Trap . | . . . . . . . . . . . . Miscellaneous . | . . . . . . . . . . . . Route ------- -11/Scrapyard -10/Materials (discovered 2 exits: *Mat / [*Min]) -9/Materials -8/Materials (discovered 4 exits: *Fac x2 / Sto / Gar) -8/Garrison -8/Materials -8/Garrison (discovered 2 exits: *Fac x2) -7/Factory -7/Lower Caves -7/Lower Caves (discovered 2 exits: [*Fac] / *Dat) -7/Data Miner -6/Proximity Caves History --------- Turn | Location | Event 12 | -11/Scrapyard | Discovered new exit (range 16) 117 | -11/Scrapyard | Entered Materials 316 | -10/Materials | Build established: Mutant 482 | -10/Materials | Discovered new exit (range 16) 661 | -10/Materials | Discovered new exit (range 15) 907 | -10/Materials | Entered another Materials area 907 | -9/Materials | Evolved 2 slots: Propulsion x2 930 | -9/Materials | Central database locked down 1301 | -9/Materials | Repaired Lgt. Treads 1329 | -9/Materials | Repaired Lgt. Armor Plating 1351 | -9/Materials | Build established: Scavenger-Mutant 1785 | -9/Materials | Discovered new exit (range 16) 2220 | -9/Materials | Entered another Materials area 2220 | -8/Materials | Evolved 2 slots: Utility x2 2314 | -8/Materials | Build established: Mutant 2553 | -8/Materials | Discovered new exit (range 4) 2944 | -8/Materials | Discovered new exit (range 4) 2978 | -8/Materials | Identified exit to Storage 3027 | -8/Materials | Identified exit to Garrison 3027 | -8/Materials | Entered Garrison 3101 | -8/Garrison | Installed Relay Interface Framework 3143 | -8/Garrison | Triggered checkpoint 3268 | -8/Garrison | Discovered new exit (range 5) 3375 | -8/Garrison | Triggered checkpoint 3391 | -8/Garrison | Triggered checkpoint 3459 | -8/Garrison | Entered Materials 3615 | -8/Materials | Garrison activated, responded to threat 3660 | -8/Materials | Identified exit to Garrison 3660 | -8/Materials | Entered Garrison 3976 | -8/Garrison | Triggered checkpoint 4328 | -8/Garrison | Triggered checkpoint 4390 | -8/Garrison | Lost 4 parts (3n1u) 4488 | -8/Garrison | Discovered new exit (range 10) 4566 | -8/Garrison | Triggered checkpoint 4629 | -8/Garrison | Build established: Scavenger-Mutant 4642 | -8/Garrison | Triggered checkpoint 4744 | -8/Garrison | Triggered checkpoint 4892 | -8/Garrison | Triggered checkpoint 4991 | -8/Garrison | Expanded RIF knowledge: Structural Interface 5156 | -8/Garrison | Discovered new exit (range 12) 5197 | -8/Garrison | Garrison Relay disabled 5220 | -8/Garrison | Garrison Relay disabled 5387 | -8/Garrison | Entered Factory 5387 | -7/Factory | Evolved 2 slots: Utility x2 5634 | -7/Factory | Build established: Bothacker-Mutant 5735 | -7/Factory | Repaired Hrd. Medium Armor Plating 5781 | -7/Factory | Repaired Hvy. Laser 5862 | -7/Factory | Found Powered Armor 5871 | -7/Factory | Discovered new exit (range 8) 6873 | -7/Factory | Entered Lower Caves 6873 | -7/Lower Caves | Accompanied by 1 ally 7003 | -7/Lower Caves | Build established: Mutant 7086 | -7/Lower Caves | Spotted B-75 Beast 8179 | -7/Lower Caves | Discovered new exit (range 8) 8233 | -7/Lower Caves | Entered another Lower Caves area 8540 | -7/Lower Caves | Learned Factory emergency access door positions 8682 | -7/Lower Caves | Discovered new exit (range 5) 9203 | -7/Lower Caves | Found Prototype Device 9443 | -7/Lower Caves | Learned location of Armory (-3) 9443 | -7/Lower Caves | Learned Research emergency access door positions 9443 | -7/Lower Caves | Learned Factory security intel 9528 | -7/Lower Caves | Discovered new exit (range 6) 9831 | -7/Lower Caves | Attracted the attention of an 0b10 checkpoint 9858 | -7/Lower Caves | Entered Data Miner 9858 | -7/Data Miner | Discovered new exit (range 6) 9889 | -7/Data Miner | Met Data Miner 9917 | -7/Data Miner | Learned location of Section 7 (-3) 9917 | -7/Data Miner | Acquired the access code to Warlord's prototype stash 9927 | -7/Data Miner | Data Conduit disabled 10052 | -7/Data Miner | Lost 6 parts (1p3n2u) 10139 | -7/Data Miner | Identified Heart of Steel 10140 | -7/Data Miner | Core integrity fell below 50% 10162 | -7/Data Miner | Core integrity fell below 20% 10168 | -7/Data Miner | Lost 9 parts (2n4u3w) 10181 | -7/Data Miner | Entered Proximity Caves 10181 | -6/Proximity Caves | Self-destructed Last Messages --------------- 10115_ The unstable cave ceiling collapses. 10116_ Imp. Medium Armor Plating destroyed. 10119_ VSS Leg destroyed. 10124_ System corrupted: Component data lost. 10125_ Gauss Rifle destroyed. 10125_ Mak. Leg destroyed. 10128_ Hvy. Missile Launcher destroyed. 10128_ Destroyed Hvy. Missile Launcher. 10135_ Weapon Cycler destroyed. 10137_ Cryofiber Web destroyed. 10137_ Great Axe destroyed. 10139_ Identified Heart of Steel. 10140_ The unstable cave ceiling collapses. 10146_ System corrupted: Component data lost. 10149_ Dropped Hcp. Storage Unit. 10157_ The unstable cave ceiling collapses. 10176_ System corrupted: Energy discharge (-25). 10180_ Heart of Steel destroyed. LOCATION=UNKNOWN GOAL=ESCAPE Map ----- +----------------------------------------------------+ | ?????????????????????????????????????????????????? | | ?????????????????????????????????????????????????? | | ?????????????????????????????????????????????????? | | ?????????????????????????????????????????????????? | | ?????????????????????????????????????????????????? | | ?????????????????????????????????????????????????? | | ?????????????????????????????????????????????????? | | ?????????????????????????????????????????????????? | | ?????????????????????????????????????????????????? | | ?????????????????????????????????????????????????? | | ?????????????????????????????????????????????????? | | ?????????????????????????????????????????????????? | | ?????????????????????????????????????????????????? | | ?????????????????????????????????????????????????? | | ?????????????????????????????????????????????????? | | ?????????????????????????????????????????????????? | | ?????????????????????###?????????????????????????? | | ?????????????????????? ####?????????????????????? | | ?????????????????????? ?????????????????????? | | ??????????????????????# ?????????????????????? | | ?????????????????????## #?????????????????????? | | ????????????????????## #?????????????????????? | | ????????????????##### ??????????????????????? | | ???????????????## ??????????????????????? | | ???????????????# ##?????????????????????? | | ??????????????# @ #?????????????????????? | | ??????????????# #?????????????????????? | | ??????????????## #?????????????????????? | | ???????????????## s ?????????????????????? | | ????????????????## #????????????????????? | | ?????????????????## #????????????????????? | | ??????????????????# Y ????????????????????? | | ?????????????????# ????????????????????? | | ????????????????# g #???????????????????? | | ???????????????? #???????????????????? | | ???????????????## #### ???????????????????? | | ????????????????# #????# ???????????????????? | | ????????????????# #??????# ??????????????????? | | ?????????????????? #????????###??????????????????? | | ?????????????????????????????????????????????????? | | ?????????????????????????????????????????????????? | | ?????????????????????????????????????????????????? | | ?????????????????????????????????????????????????? | | ?????????????????????????????????????????????????? | | ?????????????????????????????????????????????????? | | ?????????????????????????????????????????????????? | | ?????????????????????????????????????????????????? | | ?????????????????????????????????????????????????? | | ?????????????????????????????????????????????????? | | ?????????????????????????????????????????????????? | +----------------------------------------------------+ Best States ------------- Heat Dissipation 62 Energy Generation 15 Energy Capacity 265 Matter Stores 393 Matter Capacity 450 Sight Range 16 Terrain Scan Range 14 Terrain Scan Density 10 ECM Strength 1 Base Temperature (-) 100 Armor Coverage 625 Resistance: KI 30 Propulsion Shielding 33 Weapon Shielding 66 Weapon Cycling 15 Evasion (%) 40 Targeting Accuracy 5 Recoil Reduction 4 Relay Coupler Types 2 Relay Coupler Value 45 Item Schematics ----------------- Hrd. Medium Armor Plating | -8/Materials | Scanalyzed Combat Drone Bay | -7/Data Miner | Free Lgt. Regenerative Plating | -7/Data Miner | Free Cld. Cesium-ion Thruster | -7/Data Miner | Free Gravity Neutralizer | -7/Data Miner | Free Scatter Rocket Array | -7/Data Miner | Free Antigrav System | -7/Data Miner | Free Lyr. Heavy Armor Plating | -7/Data Miner | Free Imp. Remote Datajack | -7/Data Miner | Free Hyp. Gauss Rifle | -7/Data Miner | Free Hvy. Siege Treads | -7/Data Miner | Free Adv. Coolant Injector | -7/Data Miner | Free Robot Schematics ------------------ B-48 Gladiator | -7/Data Miner | Free G-47 Trooper | -7/Data Miner | Free R-10 Processor | -7/Data Miner | Free M-22 Extractor | -7/Data Miner | Free Fabricated ------------ Nothing Repaired ---------- Lgt. Treads | 7% | -9/Materials Lgt. Armor Plating | 24% | -9/Materials Hrd. Medium Armor Plating | 5% | -7/Factory Hvy. Laser | 31% | -7/Factory Studied --------- Particle Cannon | -9/Materials | Hacked Grenade Launcher | -9/Materials | Hacked Minigun | -8/Materials | Hacked Mni. Grenade Launcher | -8/Materials | Hacked Alien Tech Used ----------------- None Achievements -------------- Infiltrator Challenges ------------ None Game ------ Seed DoorNeutronChaingun Manual? 0 Play Time 01:32:26 Cumulative 41.8 hours Start 2026.02.21 @ 21:30:27 End 2026.02.22 @ 08:51:01 Sessions 3 Manual Loads 0 Difficulty Rogue Special Mode None Game No. 46 Rogue 46 Adventurer 0 Explorer 0 Win Type - Total 0 Types 0/0/0/0/0/0/0/0/0/0 Lore% 44 Gallery% 34 Achievement% 28 Wizard Run 0 Options --------- Layout 1 ASCII 0 Keyboard 0 Movement Mouse Keybinds 0 Fullscreen 1 Font 24/Swanston Map View 50x35 Zoom Use 0% Tactical HUD 1 Map Filters NONE Filters NONE Steam 1 RUN: 16db33ca-8cb7-42fc-9434-04e19a3632f8